[Event "Titled Tuesday Blitz November 07 Late 2023"]
[White "Perske, Thore"]
[Black "FuenfgegenWilly"]
[WhiteFideId "12902195"]
[WhiteElo "2651"]
[BlackElo "2451"]
[Result "1-0"]
[Round "8"]
[TimeControl "180+1"]
[Date "2023.11.07"]
[WhiteClock "0:00:04"]
[BlackClock "0:00:00"]
[Board "37"]

1. e4 {[%clk 0:03:00]}  Na6 {[%clk 0:02:59]} 2. d4 {[%clk 0:02:57]}  c6 {[%clk 0:02:59]} 3. c4 {[%clk 0:02:56]}  Nc7 {[%clk 0:02:57]} 4. Nc3 {[%clk 0:02:56]}  g6 {[%clk 0:02:56]} 5. Nge2 {[%clk 0:02:56]}  Bg7 {[%clk 0:02:56]} 6. g3 {[%clk 0:02:56]}  d6 {[%clk 0:02:56]} 7. Bg2 {[%clk 0:02:56]}  Bd7 {[%clk 0:02:55]} 8. O-O {[%clk 0:02:56]}  Qc8 {[%clk 0:02:55]} 9. f4 {[%clk 0:02:54]}  Bh3 {[%clk 0:02:53]} 10. Be3 {[%clk 0:02:54]}  h5 {[%clk 0:02:52]} 11. f5 {[%clk 0:02:42]}  Bxg2 {[%clk 0:02:39]} 12. Kxg2 {[%clk 0:02:43]}  Nf6 {[%clk 0:02:30]} 13. h3 {[%clk 0:02:38]}  gxf5 {[%clk 0:02:20]} 14. Rxf5 {[%clk 0:02:29]}  Nxe4 {[%clk 0:02:13]} 15. Rf3 {[%clk 0:02:26]}  Nxc3 {[%clk 0:02:05]} 16. bxc3 {[%clk 0:02:24]}  Qe6 {[%clk 0:02:00]} 17. Qd3 {[%clk 0:02:16]}  Qg6 {[%clk 0:01:48]} 18. Qxg6 {[%clk 0:02:14]}  fxg6 {[%clk 0:01:49]} 19. Nf4 {[%clk 0:02:14]}  g5 {[%clk 0:01:50]} 20. Nd3 {[%clk 0:02:07]}  Ne6 {[%clk 0:01:47]} 21. d5 {[%clk 0:02:02]}  cxd5 {[%clk 0:01:44]} 22. cxd5 {[%clk 0:02:02]}  Nc7 {[%clk 0:01:44]} 23. Bxg5 {[%clk 0:02:01]}  Nxd5 {[%clk 0:01:44]} 24. Rb1 {[%clk 0:01:55]}  b6 {[%clk 0:01:37]} 25. c4 {[%clk 0:01:54]}  Nf6 {[%clk 0:01:24]} 26. Nf4 {[%clk 0:01:54]}  Kd7 {[%clk 0:01:20]} 27. Re1 {[%clk 0:01:50]}  Rac8 {[%clk 0:01:16]} 28. Ne6 {[%clk 0:01:21]}  Rhg8 {[%clk 0:01:03]} 29. Nxg7 {[%clk 0:01:15]}  Rxg7 {[%clk 0:01:04]} 30. Bxf6 {[%clk 0:01:14]}  exf6 {[%clk 0:01:04]} 31. Rxf6 {[%clk 0:01:14]}  Rxc4 {[%clk 0:01:03]} 32. Re2 {[%clk 0:01:07]}  Rc3 {[%clk 0:01:02]} 33. Rf3 {[%clk 0:01:07]}  Rxf3 {[%clk 0:00:56]} 34. Kxf3 {[%clk 0:01:08]}  d5 {[%clk 0:00:54]} 35. Kf4 {[%clk 0:01:07]}  Kd6 {[%clk 0:00:54]} 36. Rd2 {[%clk 0:01:04]}  Kc5 {[%clk 0:00:52]} 37. g4 {[%clk 0:00:57]}  hxg4 {[%clk 0:00:47]} 38. hxg4 {[%clk 0:00:57]}  d4 {[%clk 0:00:48]} 39. g5 {[%clk 0:00:53]}  Kc4 {[%clk 0:00:47]} 40. Rc2+ {[%clk 0:00:52]}  Kd3 {[%clk 0:00:47]} 41. Rc8 {[%clk 0:00:52]}  Ke2 {[%clk 0:00:38]} 42. Re8+ {[%clk 0:00:47]}  Kd2 {[%clk 0:00:37]} 43. Kf5 {[%clk 0:00:43]}  d3 {[%clk 0:00:36]} 44. Kf6 {[%clk 0:00:44]}  Rd7 {[%clk 0:00:12]} 45. g6 {[%clk 0:00:42]}  Kc1 {[%clk 0:00:11]} 46. Rc8+ {[%clk 0:00:40]}  Kb1 {[%clk 0:00:07]} 47. g7 {[%clk 0:00:38]}  d2 {[%clk 0:00:06]} 48. g8=Q {[%clk 0:00:35]}  d1=Q {[%clk 0:00:06]} 49. Qc4 {[%clk 0:00:12]}  Qd4+ {[%clk 0:00:05]} 50. Ke6 {[%clk 0:00:11]}  Qd6+ {[%clk 0:00:03]} 51. Kf5 {[%clk 0:00:11]}  Qd5+ {[%clk 0:00:02]} 52. Qxd5 {[%clk 0:00:08]}  Rxd5+ {[%clk 0:00:03]} 53. Ke4 {[%clk 0:00:09]}  Ra5 {[%clk 0:00:04]} 54. Kd3 {[%clk 0:00:07]}  Kxa2 {[%clk 0:00:04]} 55. Kc3 {[%clk 0:00:08]}  Ka3 {[%clk 0:00:03]} 56. Kc4 {[%clk 0:00:07]}  Ka4 {[%clk 0:00:02]} 57. Rc7 {[%clk 0:00:06]}  b5+ {[%clk 0:00:02]} 58. Kc3 {[%clk 0:00:07]}  Ra6 {[%clk 0:00:02]} 59. Rb7 {[%clk 0:00:04]}  Ka5 {[%clk 0:00:00]} 60. Kb3 {[%clk 0:00:04]} 1-0


[Site "https://www.chess.com"]

[Event "Titled Tuesday Blitz November 07 Late 2023"]
[White "MKlose11"]
[Black "a-z30"]
[WhiteElo "2710"]
[BlackElo "2539"]
[Result "1-0"]
[Round "8"]
[TimeControl "180+1"]
[Date "2023.11.07"]
[WhiteClock "0:00:54"]
[BlackClock "0:00:00"]
[Board "43"]

1. e4 {[%clk 0:02:55]}  d6 {[%clk 0:02:43]} 2. Nc3 {[%clk 0:02:53]}  Nf6 {[%clk 0:02:44]} 3. d4 {[%clk 0:02:39]}  g6 {[%clk 0:02:44]} 4. Bg5 {[%clk 0:02:38]}  c6 {[%clk 0:02:33]} 5. g3 {[%clk 0:02:32]}  Bg7 {[%clk 0:02:28]} 6. Bg2 {[%clk 0:02:29]}  O-O {[%clk 0:02:27]} 7. Nge2 {[%clk 0:02:29]}  Qc7 {[%clk 0:02:27]} 8. a4 {[%clk 0:02:28]}  h6 {[%clk 0:02:23]} 9. Be3 {[%clk 0:02:26]}  Nbd7 {[%clk 0:02:21]} 10. h3 {[%clk 0:02:26]}  e5 {[%clk 0:02:17]} 11. O-O {[%clk 0:02:25]}  b6 {[%clk 0:01:55]} 12. Qd2 {[%clk 0:02:24]}  Kh7 {[%clk 0:01:54]} 13. Rad1 {[%clk 0:02:21]}  Bb7 {[%clk 0:01:53]} 14. f4 {[%clk 0:02:20]}  a6 {[%clk 0:01:44]} 15. f5 {[%clk 0:02:17]}  b5 {[%clk 0:01:34]} 16. g4 {[%clk 0:02:08]}  b4 {[%clk 0:01:32]} 17. Nb1 {[%clk 0:02:05]}  d5 {[%clk 0:01:16]} 18. exd5 {[%clk 0:01:53]}  Nxd5 {[%clk 0:01:03]} 19. dxe5 {[%clk 0:01:34]}  Nxe3 {[%clk 0:00:47]} 20. Qxe3 {[%clk 0:01:21]}  Qxe5 {[%clk 0:00:33]} 21. Qxe5 {[%clk 0:01:18]}  Nxe5 {[%clk 0:00:33]} 22. f6 {[%clk 0:01:18]}  Bh8 {[%clk 0:00:32]} 23. Nd2 {[%clk 0:01:15]}  Rad8 {[%clk 0:00:31]} 24. Ne4 {[%clk 0:01:12]}  c5 {[%clk 0:00:31]} 25. Nxc5 {[%clk 0:01:10]}  Rxd1 {[%clk 0:00:26]} 26. Rxd1 {[%clk 0:01:10]}  Bxg2 {[%clk 0:00:20]} 27. Kxg2 {[%clk 0:01:10]}  Bxf6 {[%clk 0:00:20]} 28. Nxa6 {[%clk 0:01:09]}  Nc4 {[%clk 0:00:20]} 29. Rd7 {[%clk 0:01:03]}  Nxb2 {[%clk 0:00:14]} 30. Nxb4 {[%clk 0:01:01]}  Nxa4 {[%clk 0:00:13]} 31. Nd5 {[%clk 0:00:59]}  Kg7 {[%clk 0:00:00]} 32. Nef4 {[%clk 0:00:54]} 1-0


[Site "https://www.chess.com"]

[Event "Titled Tuesday Blitz November 07 Late 2023"]
[White "Bilan, Danila"]
[Black "Kavutskiy, Konstantin"]
[WhiteFideId "24161918"]
[BlackFideId "2026384"]
[WhiteElo "2512"]
[BlackElo "2672"]
[Result "0-1"]
[Round "8"]
[TimeControl "180+1"]
[Date "2023.11.07"]
[WhiteClock "0:00:00"]
[BlackClock "0:00:26"]
[Board "48"]

1. d4 {[%clk 0:03:00]}  Nf6 {[%clk 0:02:55]} 2. Nf3 {[%clk 0:02:59]}  g6 {[%clk 0:02:55]} 3. Bg5 {[%clk 0:02:58]}  Bg7 {[%clk 0:02:55]} 4. c3 {[%clk 0:02:58]}  O-O {[%clk 0:02:54]} 5. Nbd2 {[%clk 0:02:58]}  d6 {[%clk 0:02:53]} 6. e4 {[%clk 0:02:58]}  c5 {[%clk 0:02:54]} 7. dxc5 {[%clk 0:02:57]}  dxc5 {[%clk 0:02:55]} 8. Bc4 {[%clk 0:02:57]}  Qc7 {[%clk 0:02:55]} 9. O-O {[%clk 0:02:56]}  Nc6 {[%clk 0:02:55]} 10. a4 {[%clk 0:02:56]}  b6 {[%clk 0:02:54]} 11. Qc2 {[%clk 0:02:54]}  Bb7 {[%clk 0:02:52]} 12. Rfe1 {[%clk 0:02:55]}  h6 {[%clk 0:02:52]} 13. Bh4 {[%clk 0:02:55]}  Nh5 {[%clk 0:02:50]} 14. Nf1 {[%clk 0:02:53]}  Rad8 {[%clk 0:02:49]} 15. e5 {[%clk 0:02:39]}  Kh7 {[%clk 0:02:33]} 16. e6 {[%clk 0:02:33]}  f5 {[%clk 0:02:31]} 17. Rad1 {[%clk 0:02:22]}  Kh8 {[%clk 0:02:11]} 18. Ne3 {[%clk 0:02:06]}  Ne5 {[%clk 0:02:04]} 19. Nxe5 {[%clk 0:01:57]}  Bxe5 {[%clk 0:02:05]} 20. Bg3 {[%clk 0:01:51]}  Nxg3 {[%clk 0:02:01]} 21. hxg3 {[%clk 0:01:47]}  Kg7 {[%clk 0:01:55]} 22. Bd5 {[%clk 0:01:21]}  Bf6 {[%clk 0:01:46]} 23. Bxb7 {[%clk 0:01:08]}  Qxb7 {[%clk 0:01:47]} 24. c4 {[%clk 0:01:05]}  Rd4 {[%clk 0:01:43]} 25. Nd5 {[%clk 0:01:00]}  Qc6 {[%clk 0:01:39]} 26. b3 {[%clk 0:00:55]}  h5 {[%clk 0:01:29]} 27. Qe2 {[%clk 0:00:40]}  Re4 {[%clk 0:01:25]} 28. Qf3 {[%clk 0:00:25]}  Qxe6 {[%clk 0:01:24]} 29. Rxe4 {[%clk 0:00:18]}  fxe4 {[%clk 0:01:25]} 30. Qe2 {[%clk 0:00:13]}  Bd4 {[%clk 0:01:23]} 31. Nf4 {[%clk 0:00:05]}  Qf5 {[%clk 0:01:18]} 32. Kh2 {[%clk 0:00:03]}  h4 {[%clk 0:01:16]} 33. Rf1 {[%clk 0:00:01]}  Rh8 {[%clk 0:01:10]} 34. Nh3 {[%clk 0:00:01]}  Be5 {[%clk 0:01:04]} 35. Kg1 {[%clk 0:00:01]}  hxg3 {[%clk 0:00:57]} 36. fxg3 {[%clk 0:00:01]}  Bd4+ {[%clk 0:00:58]} 37. Kh2 {[%clk 0:00:02]}  Qe6 {[%clk 0:00:54]} 38. Re1 {[%clk 0:00:02]}  e3 {[%clk 0:00:54]} 39. Qf3 {[%clk 0:00:02]}  Qf5 {[%clk 0:00:48]} 40. Qe2 {[%clk 0:00:02]}  g5 {[%clk 0:00:45]} 41. Rf1 {[%clk 0:00:02]}  Qe6 {[%clk 0:00:43]} 42. g4 {[%clk 0:00:02]}  Qe5+ {[%clk 0:00:42]} 43. Kg1 {[%clk 0:00:02]}  Rxh3 {[%clk 0:00:38]} 44. gxh3 {[%clk 0:00:02]}  Qg3+ {[%clk 0:00:39]} 45. Kh1 {[%clk 0:00:02]}  Qxh3+ {[%clk 0:00:39]} 46. Kg1 {[%clk 0:00:02]}  e6 {[%clk 0:00:26]} 47. Qf3 {[%clk 0:00:00]}  e2+ {[%clk 0:00:26]} 0-1


[Site "https://www.chess.com"]

[Event "Titled Tuesday Blitz November 07 Late 2023"]
[White "Sreyas Payyappat"]
[Black "Aarav Dengla"]
[WhiteFideId "46674969"]
[BlackFideId "45059756"]
[WhiteElo "2510"]
[BlackElo "2647"]
[Result "0-1"]
[Round "8"]
[TimeControl "180+1"]
[Date "2023.11.07"]
[WhiteClock "0:00:02"]
[BlackClock "0:00:16"]
[Board "50"]

1. e4 {[%clk 0:03:00]}  c5 {[%clk 0:02:59]} 2. Nf3 {[%clk 0:03:01]}  d6 {[%clk 0:02:59]} 3. d4 {[%clk 0:03:02]}  cxd4 {[%clk 0:03:00]} 4. Nxd4 {[%clk 0:03:02]}  Nf6 {[%clk 0:03:00]} 5. Nc3 {[%clk 0:03:03]}  a6 {[%clk 0:03:00]} 6. h4 {[%clk 0:03:02]}  e6 {[%clk 0:02:54]} 7. g4 {[%clk 0:03:01]}  Be7 {[%clk 0:02:54]} 8. Bg2 {[%clk 0:02:55]}  Qc7 {[%clk 0:02:51]} 9. Be3 {[%clk 0:02:49]}  Nc6 {[%clk 0:02:49]} 10. f4 {[%clk 0:02:49]}  Nxd4 {[%clk 0:02:47]} 11. Bxd4 {[%clk 0:02:46]}  e5 {[%clk 0:02:47]} 12. Be3 {[%clk 0:02:23]}  Bxg4 {[%clk 0:02:38]} 13. Bf3 {[%clk 0:02:16]}  h5 {[%clk 0:02:32]} 14. Bxg4 {[%clk 0:02:10]}  Nxg4 {[%clk 0:02:23]} 15. Nd5 {[%clk 0:02:09]}  Qc6 {[%clk 0:02:17]} 16. Bb6 {[%clk 0:02:06]}  exf4 {[%clk 0:01:58]} 17. Qd2 {[%clk 0:01:37]}  Rc8 {[%clk 0:01:49]} 18. O-O-O {[%clk 0:01:36]}  Bf6 {[%clk 0:01:39]} 19. c3 {[%clk 0:01:26]}  Be5 {[%clk 0:01:36]} 20. Bd4 {[%clk 0:01:25]}  Qc4 {[%clk 0:01:29]} 21. Nb6 {[%clk 0:01:14]}  Qxd4 {[%clk 0:01:23]} 22. Nxc8 {[%clk 0:01:04]}  Qxd2+ {[%clk 0:00:53]} 23. Rxd2 {[%clk 0:01:05]}  Kd7 {[%clk 0:00:50]} 24. Nxd6 {[%clk 0:01:03]}  Ke6 {[%clk 0:00:51]} 25. Nxb7 {[%clk 0:00:59]}  Rc8 {[%clk 0:00:49]} 26. Rd5 {[%clk 0:00:17]}  f6 {[%clk 0:00:39]} 27. Nc5+ {[%clk 0:00:15]}  Kf7 {[%clk 0:00:36]} 28. Nxa6 {[%clk 0:00:13]}  f3 {[%clk 0:00:35]} 29. Nb4 {[%clk 0:00:12]}  f2 {[%clk 0:00:34]} 30. Rdd1 {[%clk 0:00:08]}  Ne3 {[%clk 0:00:33]} 31. Rdf1 {[%clk 0:00:05]}  Bg3 {[%clk 0:00:29]} 32. Nd3 {[%clk 0:00:05]}  Nxf1 {[%clk 0:00:17]} 33. Rxf1 {[%clk 0:00:06]}  Bxh4 {[%clk 0:00:17]} 34. Nxf2 {[%clk 0:00:06]}  Bg3 {[%clk 0:00:18]} 35. Nd3 {[%clk 0:00:06]}  h4 {[%clk 0:00:18]} 36. a4 {[%clk 0:00:06]}  h3 {[%clk 0:00:18]} 37. a5 {[%clk 0:00:06]}  h2 {[%clk 0:00:19]} 38. a6 {[%clk 0:00:06]}  Rh8 {[%clk 0:00:19]} 39. Rh1 {[%clk 0:00:06]}  Ra8 {[%clk 0:00:20]} 40. Nb4 {[%clk 0:00:07]}  g5 {[%clk 0:00:17]} 41. Kc2 {[%clk 0:00:06]}  g4 {[%clk 0:00:17]} 42. Kd3 {[%clk 0:00:07]}  Be5 {[%clk 0:00:17]} 43. Ke2 {[%clk 0:00:07]}  g3 {[%clk 0:00:18]} 44. Kf3 {[%clk 0:00:07]}  Rd8 {[%clk 0:00:19]} 45. Nd5 {[%clk 0:00:07]}  Rb8 {[%clk 0:00:18]} 46. b4 {[%clk 0:00:07]}  Ke6 {[%clk 0:00:16]} 47. c4 {[%clk 0:00:03]}  f5 {[%clk 0:00:15]} 48. exf5+ {[%clk 0:00:03]}  Kxf5 {[%clk 0:00:16]} 49. b5 {[%clk 0:00:04]}  Ke6 {[%clk 0:00:16]} 50. b6 {[%clk 0:00:04]}  Rf8+ {[%clk 0:00:16]} 51. Kg2 {[%clk 0:00:04]}  Rf2+ {[%clk 0:00:16]} 52. Kh3 {[%clk 0:00:04]}  g2 {[%clk 0:00:17]} 53. Re1 {[%clk 0:00:01]}  g1=Q {[%clk 0:00:15]} 54. Rxg1 {[%clk 0:00:01]}  hxg1=Q {[%clk 0:00:15]} 55. a7 {[%clk 0:00:02]}  Rh2# {[%clk 0:00:16]} 0-1


[Site "https://www.chess.com"]

[Event "Titled Tuesday Blitz November 07 Late 2023"]
[White "Musovic, Armin"]
[Black "Volkov, Maksim"]
[WhiteFideId "939935"]
[BlackFideId "54123070"]
[WhiteElo "2503"]
[BlackElo "2640"]
[Result "0-1"]
[Round "8"]
[TimeControl "180+1"]
[Date "2023.11.07"]
[WhiteClock "0:00:03"]
[BlackClock "0:00:22"]
[Board "51"]

1. a3 {[%clk 0:02:58]}  a5 {[%clk 0:02:58]} 2. Nc3 {[%clk 0:02:56]}  Nf6 {[%clk 0:02:56]} 3. e4 {[%clk 0:02:56]}  Nc6 {[%clk 0:02:54]} 4. Nf3 {[%clk 0:02:56]}  d5 {[%clk 0:02:51]} 5. e5 {[%clk 0:02:55]}  Ne4 {[%clk 0:02:51]} 6. d4 {[%clk 0:02:55]}  Bf5 {[%clk 0:02:48]} 7. Bd3 {[%clk 0:02:54]}  e6 {[%clk 0:02:46]} 8. Ne2 {[%clk 0:02:54]}  Be7 {[%clk 0:02:44]} 9. c3 {[%clk 0:02:55]}  h5 {[%clk 0:02:41]} 10. Ng3 {[%clk 0:02:54]}  Nxg3 {[%clk 0:02:34]} 11. hxg3 {[%clk 0:02:55]}  Bxd3 {[%clk 0:02:34]} 12. Qxd3 {[%clk 0:02:56]}  a4 {[%clk 0:02:30]} 13. g4 {[%clk 0:02:48]}  h4 {[%clk 0:02:25]} 14. g5 {[%clk 0:02:45]}  Na5 {[%clk 0:02:23]} 15. Bf4 {[%clk 0:02:33]}  Nc4 {[%clk 0:02:21]} 16. g6 {[%clk 0:01:27]}  Kd7 {[%clk 0:02:18]} 17. gxf7 {[%clk 0:01:25]}  g5 {[%clk 0:02:17]} 18. Bc1 {[%clk 0:01:21]}  g4 {[%clk 0:02:13]} 19. Nd2 {[%clk 0:01:22]}  Nb6 {[%clk 0:02:08]} 20. c4 {[%clk 0:01:18]}  Qf8 {[%clk 0:01:53]} 21. c5 {[%clk 0:01:14]}  Nc4 {[%clk 0:01:41]} 22. Nxc4 {[%clk 0:01:12]}  dxc4 {[%clk 0:01:42]} 23. Qg6 {[%clk 0:01:02]}  g3 {[%clk 0:01:30]} 24. f4 {[%clk 0:01:00]}  Rh6 {[%clk 0:01:18]} 25. Qe4 {[%clk 0:00:35]}  c6 {[%clk 0:01:13]} 26. f5 {[%clk 0:00:21]}  exf5 {[%clk 0:01:08]} 27. Qxf5+ {[%clk 0:00:20]}  Re6 {[%clk 0:01:08]} 28. O-O {[%clk 0:00:20]}  Qg7 {[%clk 0:00:48]} 29. Be3 {[%clk 0:00:16]}  Rf8 {[%clk 0:00:48]} 30. Rad1 {[%clk 0:00:15]}  Qg6 {[%clk 0:00:47]} 31. Qf3 {[%clk 0:00:08]}  Kc8 {[%clk 0:00:41]} 32. d5 {[%clk 0:00:08]}  Rxe5 {[%clk 0:00:38]} 33. d6 {[%clk 0:00:07]}  Bd8 {[%clk 0:00:37]} 34. Bd4 {[%clk 0:00:06]}  Rd5 {[%clk 0:00:36]} 35. Kh1 {[%clk 0:00:03]}  Kb8 {[%clk 0:00:29]} 36. Kg1 {[%clk 0:00:03]}  Ka7 {[%clk 0:00:29]} 37. Kh1 {[%clk 0:00:03]}  Qh6 {[%clk 0:00:27]} 38. Kg1 {[%clk 0:00:03]}  h3 {[%clk 0:00:27]} 39. Bc3 {[%clk 0:00:03]}  hxg2 {[%clk 0:00:26]} 40. Qxg2 {[%clk 0:00:02]}  Rh5 {[%clk 0:00:25]} 41. d7 {[%clk 0:00:01]}  Qe3+ {[%clk 0:00:22]} 42. Rf2 {[%clk 0:00:01]}  gxf2+ {[%clk 0:00:22]} 43. Qxf2 {[%clk 0:00:02]}  Rh1+ {[%clk 0:00:22]} 44. Kxh1 {[%clk 0:00:02]}  Qxf2 {[%clk 0:00:23]} 45. Ba5 {[%clk 0:00:03]}  Rh8# {[%clk 0:00:22]} 0-1


[Site "https://www.chess.com"]

[Event "Titled Tuesday Blitz November 07 Late 2023"]
[White "aghasiyevkamal"]
[Black "victormago"]
[WhiteElo "2613"]
[BlackElo "2478"]
[Result "1/2-1/2"]
[Round "8"]
[TimeControl "180+1"]
[Date "2023.11.07"]
[WhiteClock "0:00:51"]
[BlackClock "0:02:05"]
[Board "54"]

1. e4 {[%clk 0:02:59]}  c5 {[%clk 0:02:58]} 2. Nf3 {[%clk 0:02:59]}  d6 {[%clk 0:02:58]} 3. Bb5+ {[%clk 0:02:58]}  Bd7 {[%clk 0:02:57]} 4. Bxd7+ {[%clk 0:02:55]}  Qxd7 {[%clk 0:02:58]} 5. c4 {[%clk 0:02:53]}  Nc6 {[%clk 0:02:58]} 6. Nc3 {[%clk 0:02:48]}  g6 {[%clk 0:02:58]} 7. d4 {[%clk 0:02:44]}  cxd4 {[%clk 0:02:57]} 8. Nxd4 {[%clk 0:02:43]}  Bg7 {[%clk 0:02:58]} 9. Be3 {[%clk 0:02:43]}  Nf6 {[%clk 0:02:57]} 10. f3 {[%clk 0:02:43]}  O-O {[%clk 0:02:57]} 11. O-O {[%clk 0:02:41]}  Rfc8 {[%clk 0:02:57]} 12. b3 {[%clk 0:02:39]}  b6 {[%clk 0:02:58]} 13. Qd2 {[%clk 0:02:25]}  Qb7 {[%clk 0:02:51]} 14. Rad1 {[%clk 0:02:12]}  a6 {[%clk 0:02:49]} 15. Qe2 {[%clk 0:02:08]}  Nxd4 {[%clk 0:02:42]} 16. Bxd4 {[%clk 0:02:08]}  b5 {[%clk 0:02:41]} 17. Bxf6 {[%clk 0:01:08]}  Bxf6 {[%clk 0:02:39]} 18. Nd5 {[%clk 0:01:08]}  bxc4 {[%clk 0:02:39]} 19. Nxf6+ {[%clk 0:01:07]}  exf6 {[%clk 0:02:39]} 20. bxc4 {[%clk 0:01:07]}  Qb4 {[%clk 0:02:36]} 21. Rd4 {[%clk 0:01:02]}  Rc6 {[%clk 0:02:32]} 22. Rfd1 {[%clk 0:01:01]}  Rac8 {[%clk 0:02:32]} 23. h3 {[%clk 0:01:00]}  Rxc4 {[%clk 0:02:30]} 24. Rxc4 {[%clk 0:00:57]}  Rxc4 {[%clk 0:02:24]} 25. Kh2 {[%clk 0:00:57]}  Qc5 {[%clk 0:02:21]} 26. Qd3 {[%clk 0:00:56]}  Rc2 {[%clk 0:02:12]} 27. Qxd6 {[%clk 0:00:52]}  Qxd6+ {[%clk 0:02:10]} 28. Rxd6 {[%clk 0:00:52]}  Rxa2 {[%clk 0:02:11]} 29. Rxf6 {[%clk 0:00:52]}  Kg7 {[%clk 0:02:05]} 30. Rb6 {[%clk 0:00:51]} 1/2-1/2


[Site "https://www.chess.com"]

[Event "Titled Tuesday Blitz November 07 Late 2023"]
[White "Sargsyan, Anna M."]
[Black "Akhayan, Ruben"]
[WhiteFideId "13308130"]
[BlackFideId "204439"]
[WhiteElo "2605"]
[BlackElo "2458"]
[Result "1-0"]
[Round "8"]
[TimeControl "180+1"]
[Date "2023.11.07"]
[WhiteClock "0:00:05"]
[BlackClock "0:00:11"]
[Board "55"]

1. e4 {[%clk 0:02:57]}  e5 {[%clk 0:02:59]} 2. Nf3 {[%clk 0:02:50]}  Nc6 {[%clk 0:02:59]} 3. Bc4 {[%clk 0:02:48]}  Nf6 {[%clk 0:02:58]} 4. d3 {[%clk 0:02:47]}  Bc5 {[%clk 0:02:59]} 5. c3 {[%clk 0:02:48]}  d6 {[%clk 0:02:59]} 6. O-O {[%clk 0:02:48]}  O-O {[%clk 0:02:59]} 7. Re1 {[%clk 0:02:46]}  a5 {[%clk 0:02:59]} 8. h3 {[%clk 0:02:44]}  h6 {[%clk 0:02:59]} 9. Nbd2 {[%clk 0:02:43]}  Ba7 {[%clk 0:02:59]} 10. Nf1 {[%clk 0:02:43]}  Ne7 {[%clk 0:02:58]} 11. Be3 {[%clk 0:02:43]}  Ng6 {[%clk 0:02:58]} 12. Bxa7 {[%clk 0:02:41]}  Rxa7 {[%clk 0:02:57]} 13. d4 {[%clk 0:02:42]}  Ra8 {[%clk 0:02:53]} 14. Ng3 {[%clk 0:02:33]}  Qe7 {[%clk 0:02:43]} 15. Nf5 {[%clk 0:02:24]}  Qd8 {[%clk 0:02:17]} 16. Qd2 {[%clk 0:02:00]}  Kh7 {[%clk 0:02:09]} 17. Ng3 {[%clk 0:01:56]}  Be6 {[%clk 0:01:47]} 18. Bxe6 {[%clk 0:01:54]}  fxe6 {[%clk 0:01:47]} 19. dxe5 {[%clk 0:01:54]}  dxe5 {[%clk 0:01:47]} 20. Rad1 {[%clk 0:01:54]}  Qxd2 {[%clk 0:01:44]} 21. Rxd2 {[%clk 0:01:55]}  Rad8 {[%clk 0:01:43]} 22. Red1 {[%clk 0:01:55]}  Rxd2 {[%clk 0:01:42]} 23. Rxd2 {[%clk 0:01:56]}  Rf7 {[%clk 0:01:36]} 24. Rd8 {[%clk 0:01:54]}  Rd7 {[%clk 0:01:35]} 25. Rxd7 {[%clk 0:01:54]}  Nxd7 {[%clk 0:01:35]} 26. Nd2 {[%clk 0:01:44]}  b5 {[%clk 0:01:32]} 27. f3 {[%clk 0:01:43]}  Nc5 {[%clk 0:01:33]} 28. Ne2 {[%clk 0:01:42]}  Nd3 {[%clk 0:01:28]} 29. b3 {[%clk 0:01:42]}  Kg8 {[%clk 0:01:26]} 30. g3 {[%clk 0:01:35]}  Kf7 {[%clk 0:01:26]} 31. Kf1 {[%clk 0:01:07]}  Ke7 {[%clk 0:01:26]} 32. Ng1 {[%clk 0:01:06]}  Kd6 {[%clk 0:01:24]} 33. Ke2 {[%clk 0:01:01]}  Nc1+ {[%clk 0:01:20]} 34. Kd1 {[%clk 0:01:02]}  Nxa2 {[%clk 0:01:20]} 35. Kc2 {[%clk 0:01:02]}  b4 {[%clk 0:01:19]} 36. Nc4+ {[%clk 0:01:00]}  Kd7 {[%clk 0:01:15]} 37. Ne2 {[%clk 0:00:57]}  Nxc3 {[%clk 0:01:13]} 38. Nxc3 {[%clk 0:00:56]}  bxc3 {[%clk 0:01:13]} 39. Nxa5 {[%clk 0:00:52]}  h5 {[%clk 0:01:13]} 40. h4 {[%clk 0:00:50]}  Ne7 {[%clk 0:01:01]} 41. Kxc3 {[%clk 0:00:46]}  Nc8 {[%clk 0:00:57]} 42. Nc4 {[%clk 0:00:46]}  Nd6 {[%clk 0:00:56]} 43. Nxe5+ {[%clk 0:00:46]}  Ke7 {[%clk 0:00:56]} 44. Nc4 {[%clk 0:00:42]}  Nb5+ {[%clk 0:00:53]} 45. Kd3 {[%clk 0:00:43]}  Kf6 {[%clk 0:00:51]} 46. b4 {[%clk 0:00:35]}  g5 {[%clk 0:00:49]} 47. f4 {[%clk 0:00:24]}  gxh4 {[%clk 0:00:46]} 48. gxh4 {[%clk 0:00:25]}  Na7 {[%clk 0:00:41]} 49. Ne3 {[%clk 0:00:13]}  Nc6 {[%clk 0:00:42]} 50. b5 {[%clk 0:00:12]}  Ne7 {[%clk 0:00:41]} 51. e5+ {[%clk 0:00:10]}  Kf7 {[%clk 0:00:39]} 52. Ke4 {[%clk 0:00:09]}  Ng6 {[%clk 0:00:37]} 53. Ng2 {[%clk 0:00:07]}  Ne7 {[%clk 0:00:36]} 54. Ne1 {[%clk 0:00:06]}  Ng6 {[%clk 0:00:36]} 55. Nf3 {[%clk 0:00:06]}  Kg7 {[%clk 0:00:27]} 56. f5 {[%clk 0:00:06]}  exf5+ {[%clk 0:00:27]} 57. Kxf5 {[%clk 0:00:07]}  Nf8 {[%clk 0:00:22]} 58. e6 {[%clk 0:00:05]}  Ng6 {[%clk 0:00:22]} 59. Kg5 {[%clk 0:00:04]}  Ne7 {[%clk 0:00:20]} 60. Ne5 {[%clk 0:00:04]}  Nc8 {[%clk 0:00:19]} 61. Nc6 {[%clk 0:00:03]}  Nd6 {[%clk 0:00:17]} 62. e7 {[%clk 0:00:03]}  Kf7 {[%clk 0:00:17]} 63. Kxh5 {[%clk 0:00:03]}  Ne8 {[%clk 0:00:17]} 64. Kg5 {[%clk 0:00:04]}  Ng7 {[%clk 0:00:17]} 65. h5 {[%clk 0:00:04]}  Ne6+ {[%clk 0:00:17]} 66. Kg4 {[%clk 0:00:05]}  Ng7 {[%clk 0:00:14]} 67. h6 {[%clk 0:00:05]}  Ne6 {[%clk 0:00:11]} 68. h7 {[%clk 0:00:05]} 1-0


[Site "https://www.chess.com"]

[Event "Titled Tuesday Blitz November 07 Late 2023"]
[White "Kovalevsky, Stanislav"]
[Black "Flameboard08"]
[WhiteFideId "13508598"]
[WhiteElo "2457"]
[BlackElo "2603"]
[Result "0-1"]
[Round "8"]
[TimeControl "180+1"]
[Date "2023.11.07"]
[WhiteClock "0:00:48"]
[BlackClock "0:00:17"]
[Board "56"]

1. e4 {[%clk 0:03:00]}  b6 {[%clk 0:02:08]} 2. d4 {[%clk 0:02:59]}  Bb7 {[%clk 0:02:04]} 3. Bd3 {[%clk 0:03:00]}  e6 {[%clk 0:02:04]} 4. c4 {[%clk 0:02:59]}  Nf6 {[%clk 0:02:03]} 5. Nc3 {[%clk 0:02:58]}  Bb4 {[%clk 0:02:03]} 6. Qe2 {[%clk 0:02:56]}  c5 {[%clk 0:01:54]} 7. d5 {[%clk 0:02:50]}  Bxc3+ {[%clk 0:01:48]} 8. bxc3 {[%clk 0:02:48]}  d6 {[%clk 0:01:49]} 9. Nf3 {[%clk 0:02:45]}  e5 {[%clk 0:01:48]} 10. O-O {[%clk 0:02:20]}  O-O {[%clk 0:01:47]} 11. a4 {[%clk 0:02:15]}  Nbd7 {[%clk 0:01:44]} 12. a5 {[%clk 0:02:15]}  bxa5 {[%clk 0:01:43]} 13. Qa2 {[%clk 0:02:11]}  h6 {[%clk 0:01:35]} 14. Bd2 {[%clk 0:02:05]}  Nb6 {[%clk 0:01:25]} 15. Qxa5 {[%clk 0:02:01]}  Nh5 {[%clk 0:01:12]} 16. Rfb1 {[%clk 0:01:51]}  Qe7 {[%clk 0:00:56]} 17. g3 {[%clk 0:01:48]}  f5 {[%clk 0:00:55]} 18. Nh4 {[%clk 0:01:42]}  fxe4 {[%clk 0:00:37]} 19. Bxe4 {[%clk 0:01:37]}  Nf6 {[%clk 0:00:28]} 20. Ng6 {[%clk 0:01:32]}  Qf7 {[%clk 0:00:27]} 21. Nxf8 {[%clk 0:01:32]}  Nxe4 {[%clk 0:00:25]} 22. Be3 {[%clk 0:01:20]}  Qxf8 {[%clk 0:00:25]} 23. Qb5 {[%clk 0:01:10]}  Nxc3 {[%clk 0:00:23]} 24. Qb3 {[%clk 0:01:05]}  Nxb1 {[%clk 0:00:23]} 25. Rxb1 {[%clk 0:01:06]}  Ba6 {[%clk 0:00:22]} 26. Ra1 {[%clk 0:00:55]}  Bxc4 {[%clk 0:00:21]} 27. Qb2 {[%clk 0:00:50]}  Bxd5 {[%clk 0:00:17]} 28. Qb5 {[%clk 0:00:48]} 0-1


[Site "https://www.chess.com"]